fUST/lending_fUST_20250828
["ID","MTS","AMOUNT","RATE_DAILY","PERIOD"]
[381804479,1756356492140,40020.0266261,0.00019109,2]
[381804480,1756356492782,-166.2906419,0.00020017,2]
[381804481,1756356504213,727.84644148,0.00019265,2]
[381804482,1756356505894,2911.38576594,0.00019265,2]
[381804484,1756356554640,163.14204,0.00013699,2]
[381804487,1756356576250,412.98146872,0.00019416,2]
[381804488,1756356576600,206.49073436,0.00019416,2]
[381804489,1756356577796,517.32,0.00020007,3]
[381804490,1756356588035,431.07,0.00020007,3]
[381804491,1756356589082,1548.45003278,0.00019916,2]
[381804492,1756356598724,674.95,0.00020007,3]
[381804493,1756356609446,337.47,0.00020007,3]
[381804494,1756356620019,168.74,0.00020007,3]
[381804495,1756356630733,506.23,0.00020007,3]
[381804556,1756356638257,220.0,0.00019031,2]
[381804560,1756356638285,-500.0,0.00020014,2]
[381804562,1756356638294,-500.0,0.00020014,2]
[381804564,1756356638303,-500.0,0.00020014,2]
[381804566,1756356638313,-500.0,0.00020014,2]
[381804568,1756356638323,-500.0,0.00020014,2]
[381804570,1756356638335,-500.0,0.00020014,2]
[381804572,1756356638345,-500.0,0.00020014,2]
[381804573,1756356638355,-373.88928041,0.00020014,2]
[381804575,1756356638364,-500.0,0.00020014,2]
[381804577,1756356638374,-500.0,0.00020014,2]
[381804579,1756356638384,-500.0,0.00020014,2]
[381804581,1756356638393,-500.0,0.00020014,2]
[381804583,1756356638403,-500.0,0.00020014,2]
[381804585,1756356638412,-500.0,0.00020014,2]
[381804587,1756356638422,-500.0,0.00020014,2]
[381804589,1756356638431,-500.0,0.00020014,2]
[381804591,1756356638440,-500.0,0.00020014,2]
[381804593,1756356638450,-500.0,0.00020014,2]
[381804595,1756356638459,-500.0,0.00020014,2]
[381804596,1756356638468,-500.0,0.00020014,2]
[381804598,1756356638477,-500.0,0.00020014,2]
[381804600,1756356638486,-500.0,0.00020014,2]
[381804602,1756356638496,-500.0,0.00020014,2]
[381804604,1756356638507,-500.0,0.00020014,2]
[381804606,1756356638518,-500.0,0.00020014,2]
[381804608,1756356638527,-500.0,0.00020014,2]
[381804610,1756356638536,-500.0,0.00020014,2]
[381804612,1756356638546,-500.0,0.00020014,2]
[381804614,1756356638555,-500.0,0.00020014,2]
[381804616,1756356638564,-500.0,0.00020014,2]
[381804618,1756356638573,-500.0,0.00020014,2]
[381804620,1756356638585,-500.0,0.00020014,2]
[381804622,1756356638594,-174.16372244,0.00020014,2]
[381804624,1756356638603,-500.0,0.00020014,2]
[381804625,1756356638612,-500.0,0.00020014,2]
[381804627,1756356638621,-500.0,0.00020014,2]
[381804629,1756356638631,-500.0,0.00020014,2]
[381804631,1756356638640,-474.6505479,0.00020014,2]
[381804633,1756356638650,-500.0,0.00020014,2]
[381804635,1756356638659,-500.10919781,0.00020014,2]
[381804637,1756356638669,-624.20392063,0.00020014,2]
[381804639,1756356638679,-500.0,0.00020014,2]
[381804641,1756356638688,-500.0,0.00020014,2]
[381804643,1756356638697,-500.0,0.00020014,2]
[381804645,1756356638707,-300.0,0.00020014,2]
[381804647,1756356638715,-439.70922671,0.00020014,2]
[381804649,1756356638725,-500.0,0.00020014,2]
[381804651,1756356638734,-500.0,0.00020014,2]
[381804653,1756356638743,-300.0,0.00020014,2]
[381804655,1756356638752,-235.26687208,0.00020014,2]
[381804657,1756356638762,-225.52537859,0.00020014,2]
[381804659,1756356638772,-500.0,0.00020014,2]
[381804660,1756356638781,-500.0,0.00020014,2]
[381804663,1756356638941,-500.0,0.00020014,2]
[381804664,1756356638995,-219.92628355,0.00020014,2]
[381804665,1756356639004,-500.0,0.00020014,2]
[381804666,1756356639014,-500.0,0.00020014,2]
[381804667,1756356639023,-428.6449588,0.00020014,2]
[381804668,1756356639032,-500.0,0.00020014,2]
[381804669,1756356639042,-500.0,0.00020014,2]
[381804670,1756356639051,-500.0,0.00020014,2]
[381804671,1756356639060,-500.0,0.00020014,2]
[381804672,1756356639069,-500.0,0.00020014,2]
[381804673,1756356639081,-500.0,0.00020014,2]
[381804674,1756356639090,-500.0,0.00020014,2]
[381804675,1756356639099,-500.0,0.00020014,2]
[381804676,1756356639109,-500.0,0.00020014,2]
[381804677,1756356639118,-500.0,0.00020014,2]
[381804678,1756356639127,-305.11801847,0.00020014,2]
[381804679,1756356639137,-500.0,0.00020014,2]
[381804680,1756356639146,-500.0,0.00020014,2]
[381804681,1756356639155,-500.0,0.00020014,2]
[381804682,1756356639164,-452.6031577,0.00020015,2]
[381804683,1756356639173,-300.0,0.00020015,2]
[381804684,1756356639183,-300.0,0.00020015,2]
[381804685,1756356639192,-300.0,0.00020015,2]
[381804687,1756356639201,-300.0,0.00020015,2]
[381804688,1756356639211,-1200.0,0.00020015,2]
[381804689,1756356639220,-300.0,0.00020015,2]
[381804690,1756356639229,-500.0,0.00020016,2]
[381804691,1756356639239,-536.12,0.00020016,2]
[381804692,1756356639248,-602.26,0.00020016,2]
[381804693,1756356639257,-480.0,0.00020016,2]
[381804694,1756356639267,-480.0,0.00020016,2]
[381804695,1756356639277,-480.0,0.00020016,2]
[381804696,1756356639286,-480.0,0.00020016,2]
[381804697,1756356639295,-1007.62,0.00020016,2]
[381804698,1756356639305,-873.01,0.00020016,2]
[381804699,1756356639314,-60336.79740613,0.00020017,2]
[381804700,1756356639324,-15346.99704444,0.00020019,2]
[381804701,1756356639338,-5828.56627378,0.00020019,2]
[381804702,1756356639347,-5828.56627378,0.00020068,2]
[381804703,1756356639356,-228.94035764,0.000201,2]
[381804705,1756356639366,-748.67984728,0.00020101,2]
[381804706,1756356639376,-1254.84,0.00020103,3]
[381804707,1756356639385,-627.42,0.00020103,3]
[381804709,1756356639394,-313.71,0.00020103,3]
[381804710,1756356639403,-156.85,0.00020103,3]
[381804711,1756356639412,-470.58,0.00020103,3]
[381804713,1756356639421,-2509.68,0.00020106,3]
[381804714,1756356639431,-50000.0,0.00020113,2]
[381804716,1756356639441,-480.0,0.00020114,2]
[381804718,1756356639450,-480.0,0.00020114,2]
[381804720,1756356639459,-485.00430581,0.00020114,2]
[381804722,1756356639469,-480.0,0.00020114,2]
[381804724,1756356639478,-939.37,0.00020114,2]
[381804726,1756356639487,-480.0,0.00020114,2]
[381804728,1756356639496,-480.0,0.00020114,2]
[381804730,1756356639506,-482.57301981,0.00020114,2]
[381804732,1756356639518,-500.63,0.00020114,2]
[381804734,1756356639528,-480.0,0.00020114,2]
[381804736,1756356639537,-480.0,0.00020114,2]
[381804738,1756356639547,-480.0,0.00020114,2]
[381804740,1756356639557,-480.0,0.00020114,2]
[381804742,1756356639566,-480.0,0.00020114,2]
[381804744,1756356639575,-480.0,0.00020114,2]
[381804746,1756356639587,-480.0,0.00020114,2]
[381804748,1756356639597,-480.0,0.00020114,2]
[381804750,1756356639606,-480.0,0.00020114,2]
[381804752,1756356639615,-480.0,0.00020114,2]
[381804754,1756356639625,-480.0,0.00020114,2]
[381804756,1756356639634,-481.23009518,0.00020114,2]
[381804758,1756356639643,-480.0,0.00020114,2]
[381804760,1756356639652,-480.0,0.00020114,2]
[381804762,1756356639662,-480.0,0.00020114,2]
[381804764,1756356639672,-480.0,0.00020114,2]
[381804766,1756356639681,-480.0,0.00020114,2]
[381804768,1756356639690,-480.0,0.00020114,2]
[381804770,1756356639699,-480.0,0.00020114,2]
[381804772,1756356639708,-644.18,0.00020114,2]
[381804774,1756356639718,-480.0,0.00020114,2]
[381804776,1756356639727,-480.0,0.00020114,2]
[381804778,1756356639737,-480.0,0.00020114,2]
[381804780,1756356639746,-480.0,0.00020114,2]
[381804782,1756356639756,-480.0,0.00020114,2]
[381804784,1756356639765,-480.0,0.00020114,2]
[381804787,1756356639774,-480.0,0.00020114,2]
[381804789,1756356639783,-480.0,0.00020114,2]
[381804791,1756356639793,-480.0,0.00020114,2]
[381804793,1756356639803,-480.0,0.00020114,2]
[381804795,1756356639812,-480.0,0.00020114,2]
[381804797,1756356639822,-480.0,0.00020114,2]
[381804799,1756356639834,-480.0,0.00020114,2]
[381804802,1756356639843,-480.0,0.00020114,2]
[381804803,1756356639852,-480.0,0.00020114,2]
[381804805,1756356639861,-480.0,0.00020114,2]
[381804807,1756356639871,-480.0,0.00020114,2]
[381804808,1756356639881,-480.0,0.00020114,2]
[381804810,1756356639890,-480.0,0.00020114,2]
[381804812,1756356639900,-480.0,0.00020114,2]
[381804814,1756356639909,-480.0,0.00020114,2]
[381804816,1756356639918,-480.0,0.00020114,2]
[381804818,1756356639927,-617.45,0.00020114,2]
[381804820,1756356639937,-570.55,0.00020114,2]
[381804822,1756356639947,-480.0,0.00020114,2]
[381804824,1756356639956,-480.0,0.00020114,2]
[381804826,1756356639965,-616.29,0.00020114,2]
[381804828,1756356639975,-190.52068735,0.00020114,2]
[381804830,1756356639984,-1200.27,0.00020114,2]
[381804832,1756356639993,-480.0,0.00020114,2]
[381804834,1756356640003,-480.0,0.00020114,2]
[381804836,1756356640012,-480.0,0.00020114,2]
[381804838,1756356640021,-480.0,0.00020114,2]
[381804839,1756356640030,-480.0,0.00020114,2]
[381804841,1756356640039,-601.73,0.00020114,2]
[381804843,1756356640050,-482.35131049,0.00020114,2]
[381804845,1756356640059,-480.0,0.00020114,2]
[381804847,1756356640069,-480.0,0.00020114,2]
[381804849,1756356640081,-185.6824076,0.00020114,2]
[381804850,1756356640091,-480.0,0.00020114,2]
[381804852,1756356640100,-480.0,0.00020114,2]
[381804853,1756356640109,-480.0,0.00020114,2]
[381804854,1756356640118,-367.40913796,0.00020114,2]
[381804855,1756356640127,-481.75159348,0.00020114,2]
[381804856,1756356640137,-480.0,0.00020114,2]
[381804857,1756356640146,-480.0,0.00020114,2]
[381804858,1756356640156,-481.21204569,0.00020114,2]
[381804859,1756356640165,-480.0,0.00020114,2]
[381804860,1756356640175,-480.0,0.00020114,2]
[381804861,1756356640184,-480.0,0.00020114,2]
[381804862,1756356640194,-1428.02,0.00020114,2]
[381804863,1756356640204,-480.0,0.00020114,2]
[381804864,1756356640214,-480.0,0.00020114,2]
[381804865,1756356640224,-480.0,0.00020114,2]
[381804866,1756356640233,-336.04216955,0.00020114,2]
[381804867,1756356640243,-415.73388381,0.00020114,2]
[381804868,1756356640252,-480.0,0.00020114,2]
[381804869,1756356640262,-480.0,0.00020114,2]
[381804871,1756356640272,-2722.72,0.00020114,2]
[381804873,1756356640281,-480.0,0.00020114,2]
[381804875,1756356640291,-384.29419228,0.00020114,2]
[381804877,1756356640300,-480.0,0.00020114,2]
[381804879,1756356640309,-480.0,0.00020114,2]
[381804881,1756356640319,-480.0,0.00020114,2]
[381804883,1756356640330,-480.0,0.00020114,2]
[381804885,1756356640339,-480.0,0.00020114,2]
[381804887,1756356640349,-480.0,0.00020114,2]
[381804889,1756356640358,-480.0,0.00020114,2]
[381804890,1756356640368,-480.0,0.00020114,2]
[381804892,1756356640378,-480.0,0.00020114,2]
[381804894,1756356640388,-480.0,0.00020114,2]
[381804896,1756356640397,-4245.17,0.00020114,2]
[381804898,1756356640407,-480.0,0.00020114,2]
[381804900,1756356640417,-480.0,0.00020114,2]
[381804902,1756356640426,-156.2214193,0.00020114,2]
[381804904,1756356640436,-480.0,0.00020114,2]
[381804906,1756356640445,-480.0,0.00020114,2]
[381804908,1756356640454,-480.0,0.00020114,2]
[381804910,1756356640464,-480.0,0.00020114,2]
[381804911,1756356640473,-480.0,0.00020114,2]
[381804913,1756356640482,-500.0,0.00020114,2]
[381804915,1756356640492,-480.0,0.00020114,2]
[381804916,1756356640503,-480.0,0.00020114,2]
[381804917,1756356640515,-480.0,0.00020114,2]
[381804918,1756356640524,-480.0,0.00020114,2]
[381804919,1756356640534,-293.06520352,0.00020114,2]
[381804920,1756356640545,-480.0,0.00020114,2]
[381804921,1756356640555,-480.0,0.00020114,2]
[381804922,1756356640564,-541.84,0.00020114,2]
[381804923,1756356640573,-480.0,0.00020114,2]
[381804924,1756356640584,-480.0,0.00020114,2]
[381804925,1756356640593,-480.0,0.00020114,2]
[381804926,1756356640602,-480.0,0.00020114,2]
[381804927,1756356640612,-480.0,0.00020114,2]
[381804928,1756356640622,-480.0,0.00020114,2]
[381804929,1756356640631,-480.0,0.00020114,2]
[381804930,1756356640640,-480.0,0.00020114,2]
[381804931,1756356640650,-480.0,0.00020114,2]
[381804932,1756356640659,-480.91254447,0.00020114,2]
[381804933,1756356640668,-568.72,0.00020114,2]
[381804934,1756356640678,-480.0,0.00020114,2]
[381804935,1756356640688,-480.0,0.00020114,2]
[381804936,1756356640697,-480.0,0.00020114,2]
[381804937,1756356640706,-1881.85,0.00020114,2]
[381804938,1756356640716,-480.0,0.00020114,2]
[381804939,1756356640725,-481.6074401,0.00020114,2]
[381804940,1756356640735,-482.24072435,0.00020114,2]
[381804941,1756356640745,-480.0,0.00020114,2]
[381804942,1756356640756,-480.0,0.00020114,2]
[381804943,1756356640766,-481.15406375,0.00020114,2]
[381804944,1756356640777,-662.5,0.00020114,2]
[381804945,1756356640787,-554.0,0.00020114,2]
[381804946,1756356640801,-500.0,0.00020114,2]
[381804947,1756356640811,-461.90157141,0.00020114,2]
[381804948,1756356640823,-480.0,0.00020114,2]
[381804949,1756356640837,-480.0,0.00020114,2]
[381804950,1756356640847,-480.0,0.00020114,2]
[381804951,1756356640858,-480.0,0.00020114,2]
[381804952,1756356640868,-627.53,0.00020114,2]
[381804953,1756356640878,-1200.0,0.00020116,2]
[381804954,1756356640889,-480.0,0.00020116,2]
[381804955,1756356640899,-2673.38,0.00020116,2]
[381804956,1756356640909,-3486.98,0.00020116,2]
[381804957,1756356640919,-1278.52,0.00020116,2]
[381804958,1756356640928,-562.42,0.00020116,2]
[381804959,1756356640937,-391.05448382,0.00020116,2]
[381804960,1756356640947,-480.0,0.00020116,2]
[381804961,1756356640956,-1660.3,0.00020116,2]
[381804962,1756356640966,-480.0,0.00020116,2]
[381804963,1756356640975,-480.0,0.00020116,2]
[381804964,1756356640985,-941.02,0.00020116,2]
[381804965,1756356640995,-811.95,0.00020116,2]
[381804966,1756356641004,-1515.77,0.00020116,2]
[381804967,1756356641014,-592.54,0.00020116,2]
[381804968,1756356641024,-364.86643201,0.00020116,2]
[381804969,1756356641033,-760.29,0.00020116,2]
[381804970,1756356641043,-1016.7,0.00020116,2]
[381804971,1756356641053,-480.0,0.00020116,2]
[381804972,1756356641063,-480.0,0.00020116,2]
[381804973,1756356641072,-530.32,0.00020116,2]
[381804974,1756356641084,-1850.6,0.00020116,2]
[381804975,1756356641094,-1997.18,0.00020116,2]
[381804976,1756356641104,-1812.86,0.00020116,2]
[381804977,1756356641115,-542.84,0.00020116,2]
[381804978,1756356641126,-5828.56627378,0.00020117,2]
[381804979,1756356641135,-10269.36374208,0.00020119,2]
[381804980,1756356641145,-168.0,0.00020119,2]
[381804981,1756356641156,-294.0,0.00020165,2]
[381804982,1756356641166,-5828.56627378,0.00020165,2]
[381804983,1756356641175,-5019.35,0.0002017,3]
[381804984,1756356641185,-12710.44222334,0.0002017,3]
[381804985,1756356641195,-216.18903889,0.0002017,3]
[381804986,1756356641204,-500.0,0.00020173,2]
[381804987,1756356641214,-500.0,0.00020173,2]
[381804988,1756356641223,-500.0,0.00020173,2]
[381804989,1756356641232,-501.00643464,0.00020173,2]
[381804990,1756356641242,-500.0,0.00020173,2]
[381804991,1756356641252,-500.0,0.00020173,2]
[381804992,1756356641263,-500.41807306,0.00020173,2]
[381804993,1756356641273,-501.78163042,0.00020173,2]
[381804994,1756356641282,-500.0,0.00020173,2]
[381804995,1756356641292,-500.0,0.00020173,2]
[381804996,1756356641301,-500.0,0.00020173,2]
[381804997,1756356641311,-500.0,0.00020173,2]
[381804998,1756356641321,-500.0,0.00020173,2]
[381804999,1756356641331,-500.0,0.00020173,2]
[381805000,1756356641341,-502.64043492,0.00020173,2]
[381805001,1756356641351,-195.10956719,0.00020173,2]
[381805002,1756356641360,-500.0,0.00020173,2]
[381805003,1756356641370,-500.0,0.00020173,2]
[381805004,1756356641380,-500.0,0.00020173,2]
[381805005,1756356641390,-500.0,0.00020173,2]
[381805006,1756356641399,-500.0,0.00020173,2]
[381805007,1756356641408,-500.0,0.00020173,2]
[381805008,1756356641418,-500.0,0.00020173,2]
[381805009,1756356641428,-459.64861499,0.00020178,2]
[381805010,1756356641437,-417.15472785,0.0002018,3]
[381805011,1756356641447,-425.52029335,0.0002018,3]
[381805012,1756356641458,-529.67291817,0.0002018,3]
[381805013,1756356641467,-480.0,0.00020184,2]
[381805014,1756356641477,-480.0,0.00020184,2]
[381805015,1756356641487,-480.0,0.00020184,2]
[381805016,1756356641496,-512.47,0.00020184,2]
[381805017,1756356641511,-480.0,0.00020184,2]
[381805018,1756356641520,-708.4,0.00020184,2]
[381805019,1756356641530,-480.0,0.00020184,2]
[381805020,1756356641540,-1021.12,0.00020184,2]
[381805021,1756356641551,-1536.3,0.00020184,2]
[381805022,1756356641560,-480.0,0.00020184,2]
[381805023,1756356641570,-480.0,0.00020184,2]
[381805024,1756356641583,-853.77,0.00020184,2]
[381805025,1756356641593,-481.29792583,0.00020184,2]
[381805026,1756356641603,-480.0,0.00020184,2]
[381805027,1756356641611,-480.0,0.00020184,2]
[381805028,1756356641621,-584.77,0.00020184,2]
[381805029,1756356641630,-480.0,0.00020184,2]
[381805030,1756356641639,-480.0,0.00020184,2]
[381805031,1756356641648,-480.0,0.00020184,2]
[381805032,1756356641657,-545.28,0.00020184,2]
[381805033,1756356641667,-500.0,0.00020184,2]
[381805034,1756356641676,-686.06,0.00020184,2]
[381805035,1756356641686,-480.0,0.00020184,2]
[381805036,1756356641695,-694.72,0.00020184,2]
[381805037,1756356641704,-480.0,0.00020184,2]
[381805038,1756356641714,-480.0,0.00020184,2]
[381805039,1756356641723,-1147.93,0.00020184,2]
[381805040,1756356641732,-405.24850565,0.00020184,2]
[381805041,1756356641741,-677.79,0.00020184,2]
[381805042,1756356641750,-480.0,0.00020184,2]
[381805043,1756356641759,-480.0,0.00020184,2]
[381805044,1756356641769,-1123.67,0.00020184,2]
[381805045,1756356641777,-544.12,0.00020184,2]
[381805046,1756356641786,-482.15570483,0.00020184,2]
[381805047,1756356641795,-776.24,0.00020184,2]
[381805048,1756356641804,-480.0,0.00020184,2]
[381805049,1756356641813,-518.51,0.00020184,2]
[381805050,1756356641822,-480.0,0.00020184,2]
[381805051,1756356641831,-498.32,0.00020184,2]
[381805052,1756356641840,-1614.03,0.00020184,2]
[381805053,1756356641850,-480.0,0.00020184,2]
[381805054,1756356641859,-480.0,0.00020184,2]
[381805055,1756356641868,-997.72,0.00020184,2]
[381805056,1756356641877,-586.07,0.00020184,2]
[381805057,1756356641886,-480.0,0.00020184,2]
[381805058,1756356641895,-487.54,0.00020184,2]
[381805059,1756356641904,-535.44,0.00020184,2]
[381805060,1756356641913,-687.49,0.00020184,2]
[381805061,1756356641922,-480.0,0.00020184,2]
[381805062,1756356641932,-783.92,0.00020184,2]
[381805063,1756356641941,-855.7,0.00020184,2]
[381805064,1756356641951,-480.0,0.00020184,2]
[381805065,1756356641960,-480.0,0.00020184,2]
[381805066,1756356641969,-501.01,0.00020184,2]
[381805067,1756356641978,-543.48,0.00020184,2]
[381805068,1756356641987,-480.0,0.00020184,2]
[381805069,1756356641997,-500.0,0.00020184,2]
[381805070,1756356642006,-1003.05,0.00020184,2]
[381805071,1756356642015,-1200.0,0.00020184,2]
[381805072,1756356642025,-480.0,0.00020184,2]
[381805073,1756356642034,-480.0,0.00020184,2]
[381805074,1756356642043,-1135.77,0.00020184,2]
[381805075,1756356642052,-480.0,0.00020184,2]
[381805076,1756356642061,-921.25,0.00020184,2]
[381805077,1756356642070,-736.35,0.00020184,2]
[381805078,1756356642080,-480.0,0.00020184,2]
[381805079,1756356642089,-480.0,0.00020184,2]
[381805080,1756356642099,-489.03,0.00020184,2]
[381805081,1756356642107,-480.0,0.00020184,2]
[381805082,1756356642117,-1501.6,0.00020184,2]
[381805083,1756356642126,-480.0,0.00020184,2]
[381805084,1756356642135,-480.0,0.00020184,2]
[381805085,1756356642144,-586.28,0.00020184,2]
[381805086,1756356642153,-480.0,0.00020184,2]
[381805087,1756356642163,-687.31,0.00020184,2]
[381805088,1756356642172,-480.0,0.00020184,2]
[381805089,1756356642181,-490.1,0.00020184,2]
[381805090,1756356642192,-480.0,0.00020184,2]
[381805091,1756356642204,-480.0,0.00020184,2]
[381805092,1756356642213,-480.0,0.00020184,2]
[381805093,1756356642224,-543.14,0.00020184,2]
[381805094,1756356642233,-1457.75,0.00020184,2]
[381805095,1756356642243,-480.0,0.00020184,2]
[381805096,1756356642252,-480.0,0.00020184,2]
[381805097,1756356642261,-480.0,0.00020184,2]
[381805098,1756356642270,-480.0,0.00020184,2]
[381805099,1756356642279,-1828.87,0.00020184,2]
[381805100,1756356642289,-480.0,0.00020184,2]
[381805101,1756356642299,-480.0,0.00020184,2]
[381805102,1756356642312,-480.0,0.00020184,2]
[381805103,1756356642322,-480.0,0.00020184,2]
[381805104,1756356642332,-480.0,0.00020184,2]
[381805105,1756356642346,-480.0,0.00020184,2]
[381805106,1756356642355,-503.14,0.00020184,2]
[381805107,1756356642365,-480.0,0.00020184,2]
[381805108,1756356642374,-480.0,0.00020184,2]
[381805109,1756356642383,-480.0,0.00020184,2]
[381805110,1756356642392,-749.19,0.00020184,2]
[381805111,1756356642402,-1023.93,0.00020184,2]
[381805112,1756356642412,-480.0,0.00020184,2]
[381805113,1756356642421,-480.0,0.00020184,2]
[381805114,1756356642432,-4065.99,0.00020184,2]
[381805115,1756356642441,-480.0,0.00020184,2]
[381805116,1756356642451,-481.28213561,0.00020184,2]
[381805117,1756356642461,-571.63,0.00020184,2]
[381805118,1756356642478,-480.99712918,0.00020184,2]
[381805119,1756356642488,-480.0,0.00020184,2]
[381805120,1756356642497,-480.0,0.00020184,2]
[381805121,1756356642506,-1376.72,0.00020184,2]
[381805122,1756356642520,-480.0,0.00020184,2]
[381805123,1756356642529,-480.0,0.00020184,2]
[381805124,1756356642539,-2297.07,0.00020184,2]
[381805125,1756356642548,-799.5,0.00020184,2]
[381805126,1756356642558,-480.0,0.00020184,2]
[381805127,1756356642567,-480.0,0.00020184,2]
[381805128,1756356642577,-633.53,0.00020184,2]
[381805129,1756356642589,-480.0,0.00020184,2]
[381805130,1756356642598,-480.0,0.00020184,2]
[381805131,1756356642607,-480.0,0.00020184,2]
[381805132,1756356642616,-480.0,0.00020184,2]
[381805133,1756356642626,-480.0,0.00020184,2]
[381805134,1756356642635,-1204.91,0.00020184,2]
[381805135,1756356642644,-415.90203473,0.00020184,2]
[381805136,1756356642655,-480.0,0.00020184,2]
[381805137,1756356642664,-480.0,0.00020184,2]
[381805138,1756356642673,-664.77,0.00020184,2]
[381805139,1756356642683,-480.0,0.00020184,2]
[381805140,1756356642691,-349.52111818,0.00020184,2]
[381805141,1756356642702,-480.0,0.00020184,2]
[381805142,1756356642711,-480.0,0.00020184,2]
[381805143,1756356642720,-691.19,0.00020184,2]
[381805144,1756356642730,-480.0,0.00020184,2]
[381805145,1756356642740,-480.0,0.00020187,2]
[381805146,1756356642749,-480.0,0.00020188,2]
[381805147,1756356642759,-480.0,0.00020188,2]
[381805148,1756356642768,-480.0,0.00020188,2]
[381805149,1756356642777,-480.0,0.00020188,2]
[381805150,1756356642786,-480.0,0.00020188,2]
[381805151,1756356642796,-410.94721335,0.00020188,2]
[381805152,1756356642805,-480.0,0.00020188,2]
[381805153,1756356642815,-480.0,0.00020188,2]
[381805155,1756356642823,-3421.67,0.00020188,2]
[381805156,1756356642834,-2533.07,0.00020188,2]
[381805157,1756356642843,-480.0,0.00020188,2]
[381805158,1756356642852,-480.0,0.00020188,2]
[381805159,1756356642861,-480.0,0.00020188,2]
[381805160,1756356642870,-480.0,0.00020188,2]
[381805161,1756356642879,-480.0,0.00020188,2]
[381805162,1756356642889,-618.76,0.00020188,2]
[381805163,1756356642898,-1162.67,0.00020188,2]
[381805164,1756356642907,-480.0,0.00020188,2]
[381805165,1756356642917,-990.59,0.00020188,2]
[381805166,1756356642926,-480.0,0.00020188,2]
[381805167,1756356642935,-5148.52,0.00020188,2]
[381805168,1756356642944,-611.25,0.00020188,2]
[381805169,1756356642954,-480.0,0.00020188,2]
[381805170,1756356642963,-2671.32,0.00020188,2]
[381805171,1756356642972,-649.08,0.00020188,2]
[381805173,1756356642981,-5025.34,0.00020188,2]
[381805175,1756356642991,-480.0,0.00020188,2]
[381805176,1756356643000,-480.0,0.00020188,2]
[381805177,1756356643009,-668.07,0.00020188,2]
[381805178,1756356643019,-1650.5,0.00020188,2]
[381805184,1756356643212,-480.0,0.00020188,2]
[381805185,1756356643223,-480.0,0.00020189,2]
[381805186,1756356643233,-482.0766652,0.0002019,2]
[381805187,1756356643243,-480.0,0.0002019,2]
[381805188,1756356643253,-305.00748767,0.0002019,2]
[381805189,1756356643263,-480.0,0.0002019,2]
[381805190,1756356643274,-233.77251825,0.0002019,2]
[381805191,1756356643284,-480.0,0.0002019,2]
[381805192,1756356643294,-480.0,0.0002019,2]
[381805193,1756356643303,-480.0,0.0002019,2]
[381805194,1756356643313,-480.0,0.0002019,2]
[381805195,1756356643322,-480.0,0.0002019,2]
[381805196,1756356643334,-480.0,0.0002019,2]